fUSD/lending_fUSD_20250426
["ID","MTS","AMOUNT","RATE_DAILY","PERIOD"]
[359045349,1745671849259,-1000.0,0.0002,2]
[359045350,1745671849268,-1000.0,0.0002,2]
[359045351,1745671849278,-1000.0,0.0002,2]
[359045352,1745671849287,-1000.0,0.0002,2]
[359045353,1745671849296,-1000.0,0.0002,2]
[359045354,1745671849306,-1000.0,0.0002,2]
[359045355,1745671849315,-1000.0,0.0002,2]
[359045356,1745671849325,-1000.0,0.0002,2]
[359045357,1745671849335,-1000.0,0.0002,2]
[359045358,1745671849344,-1000.0,0.0002,2]
[359045359,1745671849354,-1000.0,0.0002,2]
[359045360,1745671849363,-1000.0,0.0002,2]
[359045361,1745671849373,-1000.0,0.0002,2]
[359045362,1745671849383,-1000.0,0.0002,2]
[359045363,1745671849392,-1000.0,0.0002,2]
[359045364,1745671849402,-1000.0,0.0002,2]
[359045365,1745671849412,-1000.0,0.0002,2]
[359045366,1745671849422,-1000.0,0.0002,2]
[359045367,1745671849432,-1000.0,0.0002,2]
[359045368,1745671849441,-1000.0,0.0002,2]
[359045369,1745671849451,-1000.0,0.0002,2]
[359045370,1745671849460,-1000.0,0.0002,2]
[359045371,1745671849471,-1000.0,0.0002,2]
[359045372,1745671849480,-1000.0,0.0002,2]
[359045373,1745671849490,-1000.0,0.0002,2]
[359045374,1745671849500,-1000.0,0.0002,2]
[359045375,1745671849510,-1000.0,0.0002,2]
[359045376,1745671849520,-1000.0,0.0002,2]
[359045377,1745671849529,-702.36256316,0.0002,2]
[359045378,1745671849538,-2531198.35422905,0.0002,2]
[359045379,1745671849859,-163.0,0.00019999,2]
[359045380,1745671849868,-18182.69122021,0.0002,2]
[359045381,1745671849888,-1062.32831926,0.0002,2]
[359045383,1745671946955,1000.0,0.00037808,60]
[359045384,1745672104194,449.89,0.00019,2]
[359045385,1745672135928,150.91,0.00027425,30]
[359045386,1745672177869,710.52,0.0001711,2]
[359045387,1745672179165,-286.81450761,0.00019374,2]
[359045388,1745672276947,1000.0,0.00019022,2]
[359045389,1745672287727,-161.33106,0.00019374,2]
[359045390,1745672396103,5000.0,0.000378,60]
[359045391,1745672416409,2446.04,0.00019012,2]
[359045392,1745672615152,200.0,0.00019009,2]
[359045393,1745672684152,585.13,0.00019023,2]
[359045394,1745672686793,3000.0,0.00019023,2]
[359045396,1745672753490,153.68,0.00019007,2]
[359045457,1745672891050,17465.07,0.00019007,2]
[359045461,1745673031679,-262.37443239,0.00019374,2]
[359045462,1745673031689,-181.2568378,0.00019402,2]
[359045463,1745673031702,-68.7431622,0.00019402,2]
[359045464,1745673031712,-166.68,0.00019596,2]
[359045465,1745673031722,-26.40183774,0.00019799,2]
[359045466,1745673031736,-202.37297276,0.00019799,2]
[359045467,1745673031747,-200.25696919,0.000198,2]
[359045468,1745673031757,-16.65126754,0.00019824,2]
[359045469,1745673031802,-183.34873246,0.00019824,2]
[359045470,1745673031812,-355.20081506,0.00019899,2]
[359045578,1745673038074,-844.79918494,0.00019899,2]
[359045580,1745673038083,-2000.0,0.000199,2]
[359045582,1745673038093,-4385.74016815,0.000199,2]
[359045584,1745673038104,-314.0,0.000199,2]
[359045586,1745673038113,-796.0,0.00019901,2]
[359045588,1745673038123,-1287.0,0.00019901,2]
[359045590,1745673038133,-381.747,0.00019901,2]
[359045592,1745673038142,-1445.0,0.00019901,2]
[359045594,1745673038151,-574.94,0.00019901,2]
[359045596,1745673038161,-910.0,0.00019901,2]
[359045598,1745673038170,-548.0,0.00019901,2]
[359045600,1745673038180,-6193.0,0.00019902,2]
[359045601,1745673038189,-201.859,0.00019902,2]
[359045603,1745673038199,-257.141,0.00019902,2]
[359045605,1745673038208,-877.0,0.00019902,2]
[359045607,1745673038218,-3991.0,0.00019902,2]
[359045609,1745673038228,-1135.0,0.00019902,2]
[359045611,1745673038241,-207.4,0.00019971,2]
[359045613,1745673038252,-500.0,0.00019973,2]
[359045615,1745673038261,-500.0,0.00019973,2]
[359045617,1745673038272,-500.0,0.00019973,2]
[359045619,1745673038283,-3202.19213861,0.00019976,2]
[359045621,1745673038293,-150.46767924,0.00019981,2]
[359045623,1745673038303,-500.0,0.00019981,2]
[359045625,1745673038314,-490.67710202,0.00019981,2]
[359045627,1745673038325,-400.0,0.00019981,2]
[359045629,1745673038334,-460.1,0.00019981,2]
[359045631,1745673038344,-608.51,0.00019981,2]
[359045633,1745673038354,-400.0,0.00019981,2]
[359045635,1745673038365,-482.7,0.00019981,2]
[359045637,1745673038374,-679.09,0.00019981,2]
[359045639,1745673038384,-858.66,0.00019981,2]
[359045641,1745673038393,-400.0,0.00019981,2]
[359045643,1745673038403,-966.54,0.00019981,2]
[359045645,1745673038412,-647.42,0.00019981,2]
[359045647,1745673038422,-400.0,0.00019981,2]
[359045649,1745673038431,-787.5,0.00019981,2]
[359045651,1745673038441,-601.55,0.00019981,2]
[359045653,1745673038452,-778.78,0.00019981,2]
[359045655,1745673038462,-530.35,0.00019981,2]
[359045657,1745673038472,-726.76,0.00019981,2]
[359045659,1745673038481,-1251.95,0.00019981,2]
[359045661,1745673038490,-660.88,0.00019981,2]
[359045663,1745673038500,-816.59,0.00019981,2]
[359045665,1745673038511,-451.28,0.00019981,2]
[359045667,1745673038521,-518.62,0.00019981,2]
[359045668,1745673038531,-410.79,0.00019981,2]
[359045671,1745673038541,-560.8,0.00019981,2]
[359045673,1745673038552,-400.0,0.00019981,2]
[359045675,1745673038561,-936.51,0.00019981,2]
[359045677,1745673038571,-8877.4,0.00019981,2]
[359045679,1745673038581,-400.0,0.00019981,2]
[359045681,1745673038590,-400.0,0.00019981,2]
[359045692,1745673038690,-569.28,0.00019981,2]
[359045694,1745673038700,-400.0,0.00019981,2]
[359045696,1745673038710,-400.0,0.00019981,2]
[359045698,1745673038719,-400.0,0.00019981,2]
[359045700,1745673038729,-557.67,0.00019981,2]
[359045702,1745673038738,-400.0,0.00019981,2]
[359045704,1745673038748,-16277.9985449,0.00019982,3]
[359045706,1745673038758,-400.0,0.00019982,2]
[359045708,1745673038767,-150.07839,0.00019982,2]
[359045710,1745673038776,-655.305643,0.00019982,2]
[359045712,1745673038787,-159.581834,0.00019982,2]
[359045714,1745673038798,-200.0,0.00019982,2]
[359045716,1745673038809,-400.0,0.00019982,2]
[359045718,1745673038821,-400.0,0.00019982,2]
[359045720,1745673038833,-200.0,0.00019982,2]
[359045722,1745673038843,-400.0,0.00019982,2]
[359045724,1745673038863,-159.12654718,0.00019982,2]
[359045726,1745673038875,-400.0,0.00019982,2]
[359045727,1745673038884,-400.0,0.00019982,2]
[359045729,1745673038894,-400.0,0.00019982,2]
[359045731,1745673038903,-400.0,0.00019982,2]
[359045733,1745673038913,-174.10778161,0.00019982,2]
[359045735,1745673038923,-1049.01,0.00019982,2]
[359045737,1745673038933,-167.13109927,0.00019982,2]
[359045739,1745673038944,-400.0,0.00019982,2]
[359045741,1745673038954,-152.99291854,0.00019982,2]
[359045743,1745673038964,-400.0,0.00019982,2]
[359045745,1745673038973,-403.62,0.00019982,2]
[359045747,1745673038983,-540.83,0.00019982,2]
[359045749,1745673038994,-400.0,0.00019982,2]
[359045751,1745673039003,-400.0,0.00019982,2]
[359045754,1745673039017,-400.0,0.00019982,2]
[359045755,1745673039028,-400.0,0.00019982,2]
[359045758,1745673039038,-531.0,0.00019982,2]
[359045759,1745673039048,-200.0,0.00019982,2]
[359045761,1745673039057,-400.0,0.00019982,2]
[359045763,1745673039066,-400.0,0.00019982,2]
[359045766,1745673039078,-400.0,0.00019982,2]
[359045768,1745673039087,-400.0,0.00019982,2]
[359045770,1745673039097,-400.0,0.00019982,2]
[359045772,1745673039108,-400.0,0.00019982,2]
[359045774,1745673039119,-666.24,0.00019982,2]
[359045776,1745673039128,-200.0,0.00019982,2]
[359045778,1745673039138,-400.0,0.00019982,2]
[359045780,1745673039147,-500.0,0.00019982,2]
[359045782,1745673039157,-400.0,0.00019982,2]
[359045784,1745673039167,-400.0,0.00019982,2]
[359045786,1745673039177,-200.0,0.00019982,2]
[359045788,1745673039187,-1697.34,0.00019982,2]
[359045790,1745673039197,-400.0,0.00019982,2]
[359045792,1745673039207,-400.0,0.00019982,2]
[359045794,1745673039218,-400.0,0.00019982,2]
[359045796,1745673039228,-225.87048118,0.00019982,2]
[359045798,1745673039242,-670.83,0.00019982,2]
[359045800,1745673039253,-418.61,0.00019982,2]
[359045802,1745673039265,-462.61,0.00019982,2]
[359045804,1745673039275,-400.0,0.00019982,2]
[359045806,1745673039286,-537.6,0.00019982,2]
[359045808,1745673039296,-400.0,0.00019982,2]
[359045810,1745673039307,-250.0,0.00019982,2]
[359045812,1745673039317,-853.45,0.00019982,2]
[359045814,1745673039326,-721.07,0.00019982,2]
[359045816,1745673039336,-400.0,0.00019982,2]
[359045818,1745673039346,-400.0,0.00019982,2]
[359045820,1745673039356,-613.79,0.00019982,2]
[359045822,1745673039366,-400.0,0.00019982,2]
[359045824,1745673039375,-400.0,0.00019982,2]
[359045826,1745673039385,-500.0,0.00019982,2]
[359045828,1745673039394,-400.0,0.00019982,2]
[359045830,1745673039404,-400.0,0.00019982,2]
[359045832,1745673039414,-205.26182387,0.00019982,2]
[359045834,1745673039424,-750.53,0.00019982,2]
[359045836,1745673039433,-624.07,0.00019982,2]
[359045838,1745673039442,-802.3,0.00019982,2]
[359045840,1745673039452,-400.0,0.00019982,2]
[359045842,1745673039462,-788.01,0.00019982,2]
[359045844,1745673039471,-400.0,0.00019982,2]
[359045847,1745673039481,-253.92943443,0.00019982,2]
[359045849,1745673039491,-400.0,0.00019982,2]
[359045851,1745673039500,-770.01,0.00019982,2]
[359045852,1745673039509,-200.0,0.00019982,2]
[359045854,1745673039519,-200.0,0.00019982,2]
[359045856,1745673039528,-503.38,0.00019982,2]
[359045858,1745673039538,-200.0,0.00019982,2]
[359045860,1745673039547,-400.0,0.00019982,2]
[359045863,1745673039557,-552.39,0.00019982,2]
[359045866,1745673039567,-200.0,0.00019982,2]
[359045869,1745673039576,-400.0,0.00019982,2]
[359045872,1745673039585,-693.18,0.00019982,2]
[359045875,1745673039595,-400.0,0.00019982,2]
[359045878,1745673039605,-532.63,0.00019982,2]
[359045881,1745673039614,-400.0,0.00019982,2]
[359045884,1745673039624,-455.11899499,0.00019982,2]
[359045887,1745673039633,-798.74,0.00019982,2]
[359045890,1745673039643,-288.02887462,0.00019982,2]
[359045893,1745673039652,-511.05,0.00019982,2]
[359045896,1745673039662,-839.12,0.00019982,2]
[359045899,1745673039672,-200.0,0.00019982,2]
[359045902,1745673039682,-623.02,0.00019982,2]
[359045905,1745673039694,-657.97,0.00019982,2]
[359045908,1745673039707,-434.04,0.00019982,2]
[359045911,1745673039720,-400.0,0.00019982,2]
[359045914,1745673039730,-400.0,0.00019982,2]
[359045917,1745673039740,-400.0,0.00019982,2]
[359045920,1745673039749,-292.2041812,0.00019982,2]
[359045922,1745673039759,-400.0,0.00019982,2]
[359045924,1745673039769,-493.67150404,0.00019982,2]
[359045927,1745673039780,-453.06,0.00019982,2]
[359045928,1745673039791,-626.72,0.00019982,2]
[359045930,1745673039801,-200.0,0.00019982,2]
[359045932,1745673039810,-179.55021823,0.00019982,2]
[359045935,1745673039820,-400.0,0.00019982,2]
[359045936,1745673039829,-632.49,0.00019982,2]
[359045938,1745673039838,-175.18993007,0.00019982,2]
[359045940,1745673039847,-400.0,0.00019982,2]
[359045942,1745673039857,-400.0,0.00019982,2]
[359045944,1745673039867,-332.76152491,0.00019982,2]
[359045946,1745673039876,-1313.98,0.00019982,2]
[359045948,1745673039886,-400.0,0.00019982,2]
[359045950,1745673039895,-400.0,0.00019982,2]
[359045953,1745673039904,-400.0,0.00019982,2]
[359045955,1745673039915,-400.0,0.00019982,2]
[359045956,1745673039926,-400.0,0.00019982,2]
[359045959,1745673039936,-400.0,0.00019982,2]
[359045960,1745673039946,-400.0,0.00019982,2]
[359045962,1745673039957,-400.0,0.00019982,2]
[359045965,1745673039967,-1069.87,0.00019982,2]
[359045966,1745673039979,-400.0,0.00019982,2]
[359045968,1745673039988,-400.0,0.00019982,2]
[359045970,1745673040000,-400.0,0.00019982,2]
[359045972,1745673040010,-200.0,0.00019982,2]
[359045974,1745673040021,-1173.62,0.00019982,2]
[359045977,1745673040030,-400.0,0.00019982,2]
[359045978,1745673040040,-400.0,0.00019982,2]
[359045980,1745673040050,-400.0,0.00019982,2]
[359045982,1745673040059,-400.0,0.00019982,2]
[359045984,1745673040069,-777.88,0.00019982,2]
[359045986,1745673040079,-400.0,0.00019982,2]
[359045988,1745673040088,-1012.77,0.00019982,2]
[359045990,1745673040098,-200.0,0.00019982,2]
[359045992,1745673040110,-640.46,0.00019982,2]
[359045995,1745673040121,-379.52554957,0.00019982,2]
[359045996,1745673040130,-177.15994259,0.00019982,2]
[359045998,1745673040139,-687.45,0.00019982,2]
[359046000,1745673040148,-200.0,0.00019982,2]
[359046002,1745673040158,-896.21,0.00019982,2]
[359046004,1745673040167,-400.0,0.00019982,2]
[359046006,1745673040177,-386.68122914,0.00019982,2]
[359046008,1745673040187,-1007.54,0.00019982,2]
[359046010,1745673040196,-400.0,0.00019982,2]
[359046012,1745673040205,-400.0,0.00019982,2]
[359046014,1745673040215,-400.0,0.00019982,2]
[359046016,1745673040224,-1038.99,0.00019982,2]
[359046018,1745673040236,-591.21,0.00019982,2]
[359046020,1745673040247,-400.0,0.00019982,2]
[359046022,1745673040256,-400.0,0.00019982,2]
[359046024,1745673040265,-400.0,0.00019982,2]
[359046026,1745673040275,-700.1,0.00019982,2]
[359046028,1745673040284,-400.0,0.00019982,2]
[359046030,1745673040294,-164.17271795,0.00019982,2]
[359046032,1745673040304,-400.0,0.00019982,2]
[359046034,1745673040315,-478.6,0.00019982,2]
[359046036,1745673040324,-400.0,0.00019982,2]
[359046038,1745673040334,-432.81,0.00019982,2]
[359046040,1745673040343,-400.0,0.00019982,2]
[359046042,1745673040352,-400.0,0.00019982,2]
[359046044,1745673040362,-400.0,0.00019982,2]
[359046046,1745673040371,-182.67810974,0.00019982,2]
[359046048,1745673040381,-657.72,0.00019982,2]
[359046050,1745673040391,-400.0,0.00019982,2]
[359046052,1745673040401,-1108.91,0.00019982,2]
[359046054,1745673040410,-252.92410578,0.00019982,2]
[359046056,1745673040419,-400.0,0.00019982,2]
[359046057,1745673040429,-520.35,0.00019982,2]
[359046059,1745673040439,-486.67,0.00019982,2]
[359046061,1745673040448,-449.54,0.00019982,2]
[359046063,1745673040457,-400.0,0.00019982,2]
[359046065,1745673040467,-400.0,0.00019982,2]
[359046067,1745673040476,-400.0,0.00019982,2]
[359046069,1745673040486,-400.0,0.00019982,2]
[359046071,1745673040496,-759.31,0.00019982,2]
[359046073,1745673040507,-587.53,0.00019982,2]
[359046075,1745673040516,-715.64,0.00019982,2]
[359046077,1745673040525,-765.76,0.00019982,2]
[359046079,1745673040534,-625.36770935,0.00019982,2]
[359046081,1745673040544,-400.0,0.00019982,2]
[359046083,1745673040553,-400.0,0.00019982,2]
[359046085,1745673040562,-501.19,0.00019982,2]
[359046087,1745673040571,-400.0,0.00019982,2]
[359046089,1745673040581,-400.0,0.00019982,2]
[359046091,1745673040592,-400.0,0.00019982,2]
[359046093,1745673040602,-400.0,0.00019982,2]
[359046095,1745673040612,-738.86,0.00019982,2]
[359046097,1745673040622,-400.0,0.00019982,2]
[359046098,1745673040631,-400.0,0.00019982,2]
[359046099,1745673040640,-308.29454361,0.00019982,2]
[359046100,1745673040650,-400.0,0.00019982,2]
[359046101,1745673040659,-400.0,0.00019982,2]
[359046102,1745673040668,-718.79,0.00019982,2]
[359046103,1745673040678,-429.21,0.00019982,2]
[359046104,1745673040687,-400.0,0.00019982,2]
[359046105,1745673040696,-646.45,0.00019982,2]
[359046106,1745673040708,-400.0,0.00019982,2]
[359046107,1745673040719,-955.62,0.00019982,2]
[359046108,1745673040730,-400.0,0.00019982,2]
[359046109,1745673040740,-3212.11,0.00019982,2]
[359046110,1745673040749,-669.66,0.00019982,2]
[359046111,1745673040759,-823.48,0.00019982,2]
[359046113,1745673040768,-583.02,0.00019982,2]
[359046115,1745673040777,-400.0,0.00019982,2]
[359046117,1745673040787,-655.88,0.00019982,2]
[359046119,1745673040797,-400.0,0.00019982,2]
[359046121,1745673040806,-551.52,0.00019982,2]
[359046123,1745673040816,-590.53,0.00019982,2]
[359046124,1745673040825,-400.0,0.00019982,2]
[359046126,1745673040834,-668.21,0.00019982,2]
[359046128,1745673040844,-400.0,0.00019982,2]
[359046130,1745673040853,-3040.47,0.00019982,2]
[359046132,1745673040866,-905.03,0.00019982,2]
[359046134,1745673040875,-300.62533358,0.00019982,2]
[359046136,1745673040884,-400.0,0.00019982,2]
[359046138,1745673040893,-400.0,0.00019982,2]
[359046140,1745673040902,-1138.62,0.00019982,2]
[359046142,1745673040911,-216.45477984,0.00019982,2]
[359046144,1745673040921,-400.0,0.00019982,2]
[359046146,1745673040930,-400.0,0.00019982,2]
[359046148,1745673040940,-400.0,0.00019982,2]
[359046150,1745673040949,-542.75,0.00019982,2]
[359046152,1745673040958,-400.0,0.00019982,2]
[359046154,1745673040967,-400.0,0.00019982,2]
[359046156,1745673040977,-400.0,0.00019982,2]
[359046158,1745673040987,-625.41,0.00019982,2]
[359046160,1745673040996,-538.87,0.00019982,2]
[359046162,1745673041005,-400.0,0.00019982,2]
[359046164,1745673041015,-469.72,0.00019982,2]
[359046166,1745673041024,-400.0,0.00019982,2]
[359046168,1745673041034,-103183.53,0.00019982,2]
[359046170,1745673041044,-400.0,0.00019982,2]
[359046172,1745673041054,-400.0,0.00019982,2]
[359046174,1745673041064,-400.0,0.00019982,2]
[359046176,1745673041073,-1057.51,0.00019982,2]
[359046178,1745673041084,-400.0,0.00019982,2]
[359046180,1745673041093,-400.0,0.00019982,2]
[359046182,1745673041102,-400.0,0.00019982,2]
[359046184,1745673041115,-400.0,0.00019982,2]
[359046186,1745673041125,-400.0,0.00019982,2]
[359046188,1745673041134,-400.0,0.00019982,2]
[359046190,1745673041143,-3843.53,0.00019982,2]
[359046192,1745673041152,-439.35,0.00019982,2]
[359046194,1745673041162,-716.52,0.00019982,2]
[359046196,1745673041172,-400.0,0.00019982,2]
[359046198,1745673041181,-12360.77,0.00019982,2]
[359046200,1745673041191,-460.88,0.00019982,2]
[359046202,1745673041200,-400.0,0.00019982,2]
[359046204,1745673041210,-400.0,0.00019982,2]
[359046206,1745673041219,-400.0,0.00019982,2]
[359046208,1745673041229,-3182.36,0.00019982,2]
[359046210,1745673041242,-591.72,0.00019982,2]
[359046212,1745673041251,-551.7,0.00019982,2]
[359046214,1745673041262,-400.0,0.00019982,2]
[359046216,1745673041271,-541.69,0.00019982,2]
[359046218,1745673041280,-2550.05,0.00019982,2]
[359046220,1745673041290,-400.0,0.00019982,2]
[359046222,1745673041300,-444.44,0.00019982,2]
[359046224,1745673041310,-400.0,0.00019982,2]
[359046226,1745673041319,-400.0,0.00019982,2]
[359046228,1745673041328,-400.0,0.00019982,2]
[359046230,1745673041338,-478.51,0.00019982,2]
[359046232,1745673041347,-373.45507487,0.00019982,2]
[359046234,1745673041357,-400.0,0.00019982,2]
[359046236,1745673041366,-400.0,0.00019982,2]
[359046238,1745673041375,-592.53,0.00019982,2]
[359046240,1745673041385,-825.49,0.00019982,2]
[359046242,1745673041394,-566.04,0.00019982,2]
[359046244,1745673041404,-3544.75,0.00019982,2]
[359046246,1745673041413,-626.58,0.00019982,2]
[359046249,1745673041428,-618.9,0.00019982,2]
[359046251,1745673041439,-534.04,0.00019982,2]
[359046253,1745673041448,-400.0,0.00019982,2]
[359046255,1745673041458,-400.0,0.00019982,2]
[359046257,1745673041469,-400.0,0.00019982,2]
[359046259,1745673041479,-658.14,0.00019982,2]
[359046261,1745673041488,-400.0,0.00019982,2]
[359046263,1745673041498,-400.0,0.00019982,2]
[359046265,1745673041508,-400.0,0.00019982,2]
[359046267,1745673041518,-511.51,0.00019982,2]
[359046269,1745673041528,-400.0,0.00019982,2]
[359046271,1745673041538,-5109.19,0.00019982,2]
[359046273,1745673041548,-400.0,0.00019982,2]
[359046275,1745673041558,-437.66,0.00019982,2]
[359046277,1745673041567,-400.0,0.00019982,2]
[359046279,1745673041578,-441.31,0.00019982,2]
[359046281,1745673041588,-702.28,0.00019982,2]
[359046283,1745673041598,-706.32,0.00019982,2]
[359046285,1745673041609,-400.0,0.00019982,2]
[359046287,1745673041619,-400.0,0.00019982,2]
[359046289,1745673041629,-452.27,0.00019982,2]
[359046291,1745673041639,-400.0,0.00019982,2]
[359046293,1745673041648,-400.0,0.00019982,2]
[359046295,1745673041658,-730.5,0.00019982,2]
[359046297,1745673041668,-115315.88,0.00019982,2]
[359046299,1745673041678,-400.0,0.00019982,2]
[359046301,1745673041687,-533.23,0.00019982,2]
[359046303,1745673041697,-400.0,0.00019982,2]
[359046305,1745673041708,-400.0,0.00019982,2]
[359046307,1745673041718,-591.24,0.00019982,2]
[359046309,1745673041728,-1208.69,0.00019982,2]
[359046311,1745673041738,-443.3,0.00019982,2]
[359046313,1745673041747,-899.97,0.00019982,2]
[359046315,1745673041757,-508.87,0.00019982,2]
[359046317,1745673041768,-400.0,0.00019982,2]
[359046319,1745673041777,-400.0,0.00019982,2]
[359046321,1745673041787,-400.0,0.00019982,2]
[359046323,1745673041796,-400.0,0.00019982,2]
[359046325,1745673041806,-753.77,0.00019982,2]
[359046327,1745673041816,-400.0,0.00019982,2]
[359046329,1745673041826,-496.12,0.00019982,2]
[359046331,1745673041836,-400.0,0.00019982,2]
[359046333,1745673041847,-860.82,0.00019982,2]
[359046335,1745673041856,-400.0,0.00019982,2]
[359046337,1745673041867,-400.0,0.00019982,2]
[359046340,1745673041881,-652.4,0.00019982,2]
[359046342,1745673041891,-400.0,0.00019982,2]
[359046344,1745673041901,-415.89,0.00019982,2]
[359046346,1745673041912,-400.0,0.00019982,2]
[359046348,1745673041923,-413.79,0.00019982,2]
[359046350,1745673041933,-400.0,0.00019982,2]
[359046352,1745673041942,-400.0,0.00019982,2]
[359046354,1745673041952,-546.27,0.00019982,2]
[359046356,1745673041963,-400.0,0.00019982,2]
[359046358,1745673041972,-419.1,0.00019982,2]
[359046360,1745673041983,-800.78,0.00019982,2]
[359046362,1745673041992,-799.53,0.00019982,2]
[359046364,1745673042002,-489.03,0.00019982,2]
[359046366,1745673042012,-1091.65,0.00019982,2]
[359046368,1745673042021,-400.0,0.00019982,2]
[359046370,1745673042031,-663.2,0.00019982,2]
[359046372,1745673042040,-601.22,0.00019982,2]
[359046374,1745673042050,-400.0,0.00019982,2]
[359046376,1745673042060,-641.44,0.00019982,2]
[359046378,1745673042071,-400.0,0.00019982,2]
[359046380,1745673042080,-1166.03,0.00019982,2]
[359046382,1745673042091,-200.0,0.00019982,2]
[359046384,1745673042101,-683.36,0.00019982,2]
[359046386,1745673042111,-400.0,0.00019982,2]
[359046388,1745673042122,-1965.3,0.00019982,2]
[359046390,1745673042132,-200.0,0.00019982,2]
[359046393,1745673042142,-818.18,0.00019982,2]
[359046395,1745673042152,-400.0,0.00019982,2]
[359046397,1745673042162,-400.0,0.00019982,2]
[359046398,1745673042172,-706.79,0.00019982,2]
[359046401,1745673042182,-200.0,0.00019982,2]
[359046403,1745673042192,-400.0,0.00019982,2]
[359046405,1745673042202,-553.43,0.00019982,2]
[359046407,1745673042212,-815.07,0.00019982,2]
[359046410,1745673042222,-400.0,0.00019982,2]
[359046412,1745673042234,-966.86,0.00019982,2]
[359046414,1745673042245,-1143.17,0.00019982,2]
[359046416,1745673042255,-400.0,0.00019982,2]
[359046418,1745673042266,-423.74,0.00019982,2]
[359046420,1745673042275,-400.0,0.00019982,2]
[359046422,1745673042286,-604.29,0.00019982,2]
[359046424,1745673042295,-178.27373227,0.00019982,2]
[359046426,1745673042306,-400.0,0.00019982,2]
[359046428,1745673042317,-570.85,0.00019982,2]
[359046430,1745673042328,-400.0,0.00019982,2]
[359046433,1745673042343,-735.56,0.00019982,2]
[359046435,1745673042353,-411.82,0.00019982,2]
[359046437,1745673042363,-400.0,0.00019982,2]
[359046439,1745673042373,-815.63,0.00019982,2]
[359046441,1745673042383,-1536.69,0.00019982,2]
[359046444,1745673042393,-400.0,0.00019982,2]
[359046446,1745673042403,-400.0,0.00019982,2]
[359046448,1745673042412,-411.05,0.00019982,2]
[359046450,1745673042422,-400.0,0.00019982,2]
[359046451,1745673042432,-400.0,0.00019982,2]
[359046453,1745673042441,-700.65,0.00019982,2]
[359046456,1745673042452,-400.0,0.00019982,2]
[359046458,1745673042462,-400.0,0.00019982,2]
[359046460,1745673042472,-400.0,0.00019982,2]
[359046462,1745673042483,-400.0,0.00019982,2]
[359046464,1745673042493,-1090.71,0.00019982,2]
[359046466,1745673042504,-550.18,0.00019982,2]
[359046468,1745673042514,-843.63,0.00019982,2]
[359046470,1745673042526,-498.93,0.00019982,2]
[359046473,1745673042537,-598.14,0.00019982,2]
[359046475,1745673042548,-202.30963719,0.00019982,2]
[359046477,1745673042559,-796.58,0.00019982,2]
[359046479,1745673042570,-740.67,0.00019982,2]
[359046481,1745673042582,-400.0,0.00019982,2]